Cogmind - Beta 17.1 @@@ ROGUE MODE // 2026.09.02 @ 21:24:01 Player: SnailSD Result: Destroyed by D-53 Grenadier with Mini Grenade Launcher Performance ------------- Evolutions (0) 0 Regions Visited (2) 400 Robots Destroyed (22) 110 Value Destroyed (316) 316 Prototype IDs (0) 0 Alien Tech Used (0) 0 Bonus (0) 0 TOTAL SCORE: 826 Bonus ------- None Cogmind --------- Core Integrity 0/250 Matter 275/300 Energy 98/100 System Corruption 7% Temperature Cool (0) Movement Rolling (90) Location -10/Mines Parts ------- > --- POWER (1) -------- (None) > --- PROPULSION (2) --- Wheel Compact Wheel > --- UTILITY (2) ------ Large Storage Unit > --- WEAPON (2) ------- Assault Rifle > --- INVENTORY (15) --- Wheel Improved Heat Sink Small Matter Pod (25) Structural Scanner Signal Interpreter Hacking Suite Particle Gun Beam Cannon Light Assault Rifle Light Cannon Grenade Launcher Peak State ------------ > --- POWER ------------ Light Nuclear Core > --- PROPULSION ------- Light Treads Compact Wheel > --- UTILITY ---------- Large Storage Unit Sensor Array > --- WEAPON ----------- Assault Rifle Assault Rifle > --- INVENTORY -------- Light Ion Engine Light Ion Engine Wheel Wheel Compact Wheel Improved Heat Sink Small Matter Pod Structural Scanner Signal Interpreter Hacking Suite Particle Gun Beam Cannon Light Assault Rifle Light Cannon Grenade Launcher [Rating: 11] Favorites ----------- Power Ion Engine Engine Ion Engine Power Core Light Nuclear Core Propulsion Light Treads Treads Light Treads Wheel Compact Wheel Utility Sensor Array Device Sensor Array Storage Large Storage Unit Weapon Assault Rifle Ballistic Gun Assault Rifle Special Weapon Mining Laser Build | -11 -10 -10 ------- Run | Yrd Mat Min Slots Evolved . | . . . Power . | . . . Propulsion . | . . . Utility . | . . . Weapon . | . . . Parts Attached 18 | 7 5 6 Power 5 | 1 1 3 Engine 4 | 1 1 2 Core 1 | . . 1 Reactor . | . . . Propulsion 5 | 2 1 2 Treads 2 | 2 . . Leg . | . . . Wheel 3 | . 1 2 Hover . | . . . Flight . | . . . Utility 4 | 2 2 . Device 2 | 1 1 . Storage 2 | 1 1 . Processor . | . . . Hackware . | . . . Protection . | . . . Artifact . | . . . Weapon 4 | 2 1 1 Energy Gun . | . . . Energy Cannon . | . . . Ballistic Gun 3 | 2 . 1 Ballistic Cannon . | . . . Launcher . | . . . Special Weapon 1 | . 1 . Impact Weapon . | . . . Slashing Weapon . | . . . Piercing Weapon . | . . . Special Melee Weapon . | . . . Unidentified Prototypes . | . . . Parts Lost 10 | . 2 8 Power 4 | . 1 3 Propulsion 3 | . 1 2 Utility 1 | . . 1 Weapon 2 | . . 2 Highest Loss Streak 7 | . 2 7 To Critical Strikes . | . . . Average Backups 12 | 3 12 14 Power 1 | . 1 1 Propulsion 2 | 2 3 2 Utility 5 | . 5 5 Weapon 2 | . 1 4 Tool/Special . | . . . Unused Backups 17 | . 3 14 Power . | . . . Propulsion 2 | . 1 1 Utility 10 | . 2 8 Weapon 5 | . . 5 Tool/Special . | . . . Average Slot Usage (%) 97 | . 97 96 Engine 12 | . 13 8 Core 1 | . . 5 Treads 18 | . 21 12 Wheel 7 | . 4 15 Device 13 | . 14 12 Storage 14 | . 14 14 Ballistic Gun 27 | . 27 26 Peak Build Rating 11 | 8 8 11 Average Rating 7 | 5 7 8 On Entrance 5 | . 8 8 Avg Prop Armor Cover (%) 12 | . 12 12 Naked Turns . | . . . Heaviest Build 30 | 15 30 30 Greatest Support 40 | 40 40 32 Greatest Overweight (x) 1 | . 1 1 Average Overweight (x) . | . . . Largest Inventory Capacity 15 | 8 15 15 Average Capacity 13 | 7 12 15 Most Carried 15 | 8 15 15 Average Carried 12 | 3 12 14 Final Capacity 15 | 8 15 15 Final Carried 15 | 8 15 11 Class Distribution -------------------- 100% | Mutant Dominant Class ---------------- Mutant | -10/Materials Mutant | -10/Mines Resources | -11 -10 -10 ----------- Run | Yrd Mat Min Matter Collected 865 | 276 313 276 Remotely . | . . . Salvage Created 686 | 135 464 87 Parts 47 | 8 35 4 Haulers Intercepted 2 | . 2 . Recyclers Shooed 1 | . 1 . Parts Field Recycled . | . . . Retrieved Matter . | . . . Parts Self-Destructed . | . . . Prevented . | . . . Parts Restored . | . . . Kills | -11 -10 -10 ------- Run | Yrd Mat Min Combat Hostiles Destroyed 11 | . 9 2 Guns 11 | . 9 2 Classes Destroyed 7 | 2 5 . Tunneler 3 | 2 1 . Hauler 2 | . 2 . Recycler 2 | 1 1 . Operator 2 | . 2 . Watcher 2 | . 2 . Swarmer 8 | . 8 . Grunt 3 | . 1 2 Best Kill Streak 6 | 3 6 2 Combat Bots Only 6 | . 6 2 Max Kills in Single Turn 1 | 1 1 1 Gunslinging . | . . . Exploded . | . . . Melee . | . . . Uniques/NPCs Destroyed . | . . . Combat | -11 -10 -10 -------- Run | Yrd Mat Min Hostile Shots Fired 100 | . 71 29 Missed 24 | . 18 6 Hits 76 | . 53 23 Projectile 76 | . 53 23 AOE 13 | . . 13 Critical Strikes 1 | . 1 . Damage Taken 1145 | . 437 708 Core 254 | . 35 219 Absorbed by Shields . | . . . Core Remaining (%) 100 | 100 . . Volleys Fired 82 | 9 66 7 Largest 2 | 2 2 2 Hottest 100 | 40 100 40 Shots Fired 162 | 18 129 15 Gun 160 | 18 127 15 Cannon . | . . . Launcher . | . . . Special 2 | . 2 . Kinetic 160 | 18 127 15 Thermal 2 | . 2 . Explosive . | . . . Electromagnetic . | . . . Robot Hit Streak 6 | 4 6 6 Robot Miss Streak 6 | 3 6 2 Penetration Max . | . . . Secondary Targets 2 | . 2 . Max Gunslinging Chain 1 | . 1 . Shots Hit Robots 83 | 9 66 8 Core Hits 31 | 3 23 5 Critical Kills 2 | 1 1 . Critical Parts Destroyed 1 | . 1 . Critical Strikes 3 | 1 2 . Destroy 3 | 1 2 . Melee Attacks . | . . . Impact . | . . . Slashing . | . . . Piercing . | . . . Sneak Attacks . | . . . Combat Hostiles . | . . . Follow-up Attacks . | . . . Damage Inflicted 1191 | 135 959 97 Guns 1160 | 135 928 97 Cannons . | . . . Explosions . | . . . Melee . | . . . Ramming 31 | . 31 . Kinetic 1160 | 135 928 97 Thermal . | . . . Explosive . | . . . Electromagnetic . | . . . Impact . | . . . Slashing . | . . . Piercing . | . . . Highest Corruption 7 | . 7 7 Average Corruption 6 | . 6 7 Corruption Purged . | . . . Corruption Blocked . | . . . Effects 54 | . 35 19 Message Errors 18 | . 10 8 Matter Fused 10 | . 9 1 Heat Flow Errors 9 | . 3 6 Energy Discharges 4 | . 3 1 Parts Fused 1 | . 1 . Data Loss (minor) 5 | . 5 . Data Loss (major) 4 | . 2 2 Misfires 1 | . . 1 Alerts 1 | . 1 . Weapon Failures 1 | . 1 . Overload Shots . | . . . Overflow Damage . | . . . Projectiles . | . . . Explosions . | . . . Melee . | . . . Knockbacks . | . . . Impact . | . . . Kinetic . | . . . Secondary . | . . . Self-Inflicted Damage 12 | . 12 . Shots . | . . . Rammed 6 | . 6 . Targets Rammed 6 | . 6 . Kicked . | . . . Crushed . | . . . Highest Temperature 241 | . 197 241 Average Temperature 71 | . 72 70 Received Heat Transfer 132 | . 18 114 Siege Activations . | . . . Martial Activations . | . . . Shielding Activations . | . . . Robots Disrupted . | . . . Combat Hostiles . | . . . Robots Corrupted . | . . . Combat Hostiles . | . . . Parts Fried . | . . . Impact Corruptions . | . . . Robots Melted . | . . . Combat Hostiles . | . . . Parts Melted . | . . . Heat Transferred . | . . . Parts Sabotaged . | . . . Parts Stolen . | . . . Parts Stripped . | . . . Power Chain Reactions . | . . . Alert | -11 -10 -10 ------- Run | Yrd Mat Min Maximum Alert Level . | . . . Low Security (%) 100 | 100 100 100 Level 1 . | . . . Level 2 . | . . . Level 3 . | . . . Level 4 . | . . . Level 5 . | . . . High Security . | . . . Max Security . | . . . Peak Influence 134 | 10 134 40 Initial . | . . . Average 25 | . 36 3 Influence Increases 441 | 15 376 50 Destroy 0b10 Robot/C 220 | . 180 40 Destroy 0b10 Robot/NC 55 | 15 40 . Destroy Leader 58 | . 48 10 Successful Hack 18 | . 18 . Disable Machine 30 | . 30 . Lose Combat Pursuer 60 | . 60 . Influence Decreases 441 | 15 375 51 Entered New Map 1 | . . 1 Time Decay 430 | 15 365 50 Lost Part 10 | . 10 . Squads Dispatched 2 | . 2 . Investigation 1 | . 1 . Extermination . | . . . Reinforcement 1 | . 1 . Assault . | . . . Garrison . | . . . Intercept . | . . . Searches Triggered . | . . . Construction Impeded . | . . . Haulers Reinforced . | . . . Active Scanning Responses . | . . . Cargo Convoy Interrupts . | . . . Stealth | -11 -10 -10 --------- Run | Yrd Mat Min Distress Signals . | . . . Communications Jammed . | . . . Distress Signals . | . . . Times Spotted 23 | . 19 4 Peak Tracking Total 6 | . 6 2 Tactical Retreats 4 | . 4 . Traps | -11 -10 -10 ------- Run | Yrd Mat Min Traps Triggered 5 | . 5 . Indirectly . | . . . Trap Hack Attempts . | . . . Triggered . | . . . Disarmed . | . . . Reprogrammed . | . . . Reused . | . . . Traps Extracted . | . . . Installed . | . . . Triggered . | . . . Machines | -11 -10 -10 ---------- Run | Yrd Mat Min Machines Disabled 2 | . 2 . Max in Single Turn 1 | . 1 . Machines Repaired . | . . . Machines Dismantled . | . . . Machines Sabotaged . | . . . Overloaded Fab Kills . | . . . Hacking | -11 -10 -10 --------- Run | Yrd Mat Min Machines Accessed 4 | . 4 . Terminals 3 | . 3 . Fabricators . | . . . Repair Stations . | . . . Recycling Units 1 | . 1 . Scanalyzers . | . . . Garrison Access . | . . . Total Hacks 13 | . 13 . Successful 3 | . 3 . Failed 10 | . 10 . Catastrophic 2 | . 2 . Database Lockouts . | . . . Manual 11 | . 11 . Terminals 11 | . 11 . Fabricators . | . . . Repair Stations . | . . . Recycling Units 2 | . 2 . Scanalyzers . | . . . Garrison Access . | . . . Terminal Hacks 2 | . 2 . Robot Analysis 2 | . 2 . Fabricator Hacks . | . . . Repair Station Hacks . | . . . Recycling Unit Hacks . | . . . Scanalyzer . | . . . Garrison Access Hacks . | . . . Unauthorized Hacks 1 | . 1 . Terminals 1 | . 1 . Operators 1 | . 1 . Fabricators . | . . . Repair Stations . | . . . Recycling Units . | . . . Scanalyzers . | . . . Garrison Access . | . . . Data Cores Recovered 1 | . 1 . Used . | . . . Hacking Detections 4 | . 4 . Full Trace Events 2 | . 2 . Feedback Events . | . . . Feedback Blocked . | . . . Robot Schematics Acquired . | . . . Robots Built . | . . . Authchips . | . . . Time . | . . . Total Robot Build Rating . | . . . Part Schematics Acquired . | . . . Parts Built . | . . . Authchips . | . . . Time . | . . . Total Part Build Rating . | . . . Part Studies Acquired . | . . . Parts Repaired . | . . . Time . | . . . Parts Recycled . | . . . Recycled Matter . | . . . Retrieved Matter . | . . . Retrieved Components . | . . . Parts Scanalyzed . | . . . Part Schematics Acquired . | . . . Parts Damaged . | . . . Bothacking | -11 -10 -10 ------------ Run | Yrd Mat Min Used RIF Installer . | . . . Robots Hacked . | . . . Non-combat . | . . . Combat . | . . . Robot Hacks Applied . | . . . Relay Couplers Released . | . . . Fabnet Peak Effective % . | . . . Robots Rewired . | . . . Allies Hacked . | . . . Hacks Repelled . | . . . Allies | -11 -10 -10 -------- Run | Yrd Mat Min Total Allies 3 | . . 3 Largest Group 3 | . . 3 Highest-Rated Group 40 | . . 40 Highest-Rated Ally 16 | . . 16 Total Orders . | . . . Ally Attacks 5 | . . 5 Total Damage 36 | . . 36 Kills . | . . . Allies Corrupted . | . . . Allies Melted . | . . . Intel | -11 -10 -10 ------- Run | Yrd Mat Min Active Infowar (turns) 1888 | 21 1366 501 Sensors 1587 | . 1086 501 Seismic 301 | 21 280 . Robot Analysis Total 2 | . 2 . Derelict Logs Recovered 1 | . . 1 Drone Launches . | . . . Drone Recoveries . | . . . Exploration | -11 -10 -10 ------------- Run | Yrd Mat Min Turns Passed 2054 | 135 1366 553 Spaces Moved 1194 | 60 760 374 Core 5 | 5 . . Treads 463 | 55 408 . Legs . | . . . Wheels 726 | . 352 374 Hover . | . . . Flight . | . . . Fastest Speed 50 | 50 115 90 Average Speed 135 | 150 145 111 Slowest Speed 240 | 160 240 115 Overloaded Moves . | . . . Propulsion Burnouts . | . . . Robots Hopped . | . . . Potential Cave-ins . | . . . Cave-ins Triggered . | . . . Exploration Rate (%) 48 | 3 70 71 Regions Visited 2 Branch Regions 1 Pre-discovered Areas . | . . . Known Exits Taken . | . . . Unknown Exits Taken 2 | 1 1 . Scrap Searched 1 | . . 1 Spaces Dug . | . . . Terrain Destroyed . | . . . Melee . | . . . Projectile . | . . . AOE . | . . . Terrain Rammed . | . . . Walls Destroyed . | . . . Machines Disabled . | . . . Actions | -11 -10 -10 --------- Run | Yrd Mat Min Total 1464 | 83 884 497 Wait 128 | . 26 102 Move 1192 | 59 759 374 Hop . | . . . Pick Up 26 | 8 14 4 Fast Attach 9 | 7 1 1 Attach 9 | . 4 5 Detach . | . . . Swap 1 | . 1 . Drop 11 | . 7 4 Fire 82 | 9 66 7 Melee . | . . . Ram 4 | . 4 . Kick . | . . . Crush 2 | . 2 . Escape Stasis . | . . . Rewire . | . . . Trap . | . . . Miscellaneous . | . . . Route ------- -11/Scrapyard -10/Materials (discovered 2 exits: [*Mat] / [*Min]) -10/Mines (discovered 2 exits: [*Mat] / Sub) History --------- Turn | Location | Event 7 | -11/Scrapyard | Discovered new exit (range 15) 136 | -11/Scrapyard | Entered Materials 308 | -10/Materials | Build established: Mutant 366 | -10/Materials | Discovered new exit (range 9) 516 | -10/Materials | Discovered new exit (range 7) 1502 | -10/Materials | Entered Mines 1503 | -10/Mines | Assembled infested the area 1512 | -10/Mines | Met a Derelict bent on vengeance 1707 | -10/Mines | Discovered new exit (range 15) 1785 | -10/Mines | Core integrity fell below 50% 1985 | -10/Mines | Assisted by bots powering up and referring to "LRC-V3" 2014 | -10/Mines | Core integrity fell below 20% 2037 | -10/Mines | Lost 3 allies 2051 | -10/Mines | Identified exit to Subcaves 2055 | -10/Mines | Destroyed by D-53 Grenadier with Mini Grenade Launcher Last Messages --------------- 01999_ J0NGKRKAHNGGE:=ATOR5%6PHWIB 01999_ Trooper 1b destroyed. 01999_ Trooper 1a destroyed. 02000_ Acquired 38 matter. 02001_ The unstable cave ceiling collapses. 02003_ Lgt. Treads destroyed. 02003_ Sensor Array destroyed. 02003_ Lgt. Nuclear Core destroyed. 02006_ Mercenary 1a destroyed. 02009_ The unstable cave ceiling collapses. 02011_ Lgt. Ion Engine destroyed. 02011_ Com. Wheel destroyed. 02012_ The unstable cave ceiling collapses. 02037_ Lgt. Ion Engine destroyed. 02040_ 3 # 8JEIYXEIR%Y&I8CC%Q>CQJHLVK990Y4 02044_ K-01 Serf collects debris. 02046_ The unstable cave ceiling collapses. 02047_ K-01 Serf collects debris. 02051_ Acquired derelict log, extracted data. Loading 1 Mines exit... Map ----- +----------------------------------------------------+ | ?????######## ##??????????# #### #??? | | ????????????###### ##???????????# ##?? | | ?????????????????####????????????###### ##? | | ??????????????????????????????????????# ## | | ??????????????????????????????????????## | | ???????????????????????????????????????### | | ?????????????????????????????????????????## | | ??????????????????????????????????????????## | | ???????????????????????????????????????????#### | | ??????????????????????????????????????????????## | | ??????????????????????????????????????????????## | | ??????????????????????????????????????????##### | | ?????????????????????????????????????????## | | ????????????????????????????????????????## | | ????????????????????????????????????????# | | ????????????????????????????????????????# | | ????????????????????????????????????????# | | ???????????????????????????????????????## | | ??????????????????????????????????????## ### | | ?????????????????????????????????????## ##?### | | ?????????????????????????????????????# ########? | | ????????????????????????????????????## # # ## | | ?????????????????????#?????????###### r # # | | ?????????????????##### ######### # | | ?????????????????# $ t t d | | ?????????????????# $ @ # # | | ?????????????????# ########## ### ### | | ????????????????????????????# #?## ##?## # | | ????????????????????????????# #??####???#### # | | ????????????????????????????# #???????????# | | ????????????????????????????# #???????????## # # | | ????????????????????????????# ???????????# | | ????????????????????????????###???????????## | | ???????????????????????????????????????????# | | ???????????????????????????????????????????### | | ?????????????????????????????????????????????# | | ?????????????????????????????????????????????## | | ??????????????????????????????????????????????#### | | ?????????????????????????????????????????????????? | | ?????????????????????????????????????????????????? | | ?????????????????????????????????????????????????? | | | | | | | | | | | | | | | | | | | +----------------------------------------------------+ Best States ------------- Heat Dissipation 25 Energy Generation 14 Energy Capacity 250 Matter Stores 280 Matter Capacity 300 Sight Range 16 Robot Scan Range 14 Terrain Scan Density 10 Evasion (%) 42 Recoil Reduction 2 Item Schematics ----------------- None Robot Schematics ------------------ None Fabricated ------------ Nothing Repaired ---------- Nothing Studied --------- None Alien Tech Used ----------------- None Achievements -------------- None Challenges ------------ None Game ------ Seed CoolantColdBox Manual? 0 Play Time 00:18:01 Cumulative 72.9 hours Start 2026.09.02 @ 01:19:23 End 2026.09.02 @ 21:24:01 Sessions 2 Manual Loads 0 Difficulty Rogue Special Mode None Game No. 123 Rogue 123 Adventurer 0 Explorer 0 Win Type - Total 1 Types 1/0/0/0/0/0/0/0/0/0 Lore% 43 Gallery% 40 Achievement% 31 Wizard Run 0 Options --------- Layout 1 ASCII 1 Keyboard 1 Movement Numpad Keybinds 0 Fullscreen 2 Font 24/Smallcaps Map View 50x35 Zoom Use 0% Tactical HUD 1 Map Filters NONE Filters NONE Steam 1 RUN: 7684a6b2-6fdd-4442-b4e6-a766e6dfbf42